bitfinex/quotes_BTCUSD_20250803
["timestamp","ask_amount","ask_price","bid_price","bid_amount"]
[1754240464852,0.34,114250.0,114240.0,0.07276]
[1754240465210,0.01037669,114250.0,114240.0,0.07276]
[1754240465419,0.01256536,114250.0,114240.0,0.07276]
[1754240465631,0.01256536,114250.0,114240.0,0.06776]
[1754240466363,0.01356536,114250.0,114240.0,0.06776]
[1754240466784,0.08890536,114250.0,114240.0,0.06776]
[1754240468506,0.08990536,114250.0,114240.0,0.06776]
[1754240469127,0.08771669,114250.0,114240.0,0.2018]
[1754240469345,0.44142028,114250.0,114240.0,0.2018]
[1754240469551,0.42771669,114250.0,114240.0,0.2018]
[1754240472686,0.42771669,114250.0,114240.0,0.1968]
[1754240472839,0.42771766,114250.0,114240.0,0.1968]
[1754240473740,0.5163505,114250.0,114240.0,0.19676]
[1754240473938,5.3702095,114250.0,114240.0,0.19676]
[1754240475591,5.5042495,114250.0,114240.0,0.06276]
[1754240479766,5.5042495,114250.0,114240.0,0.05776]
[1754240483637,5.53163469,114250.0,114240.0,0.05776]
[1754240483860,5.54806231,114250.0,114240.0,0.05776]
[1754240484051,5.57439131,114250.0,114240.0,0.05776]
[1754240484563,5.58809616,114250.0,114240.0,0.05776]
[1754240485871,5.57439131,114250.0,114240.0,0.05776]
[1754240486923,5.57439131,114250.0,114240.0,0.05276]
[1754240487347,5.57438393,114250.0,114240.0,0.05276]
[1754240487549,5.57419224,114250.0,114240.0,0.05276]
[1754240489232,5.54680705,114250.0,114240.0,0.05276]
[1754240489956,5.47443705,114250.0,114240.0,0.13029]
[1754240490405,5.54880705,114250.0,114240.0,0.13029]
[1754240490618,5.54880705,114250.0,114240.0,0.12829]
[1754240493202,5.54879523,114250.0,114240.0,0.12829]
[1754240494171,5.54879523,114250.0,114240.0,0.12329]
[1754240496077,5.54879523,114250.0,114240.0,0.04776]
[1754240496287,5.54879523,114250.0,114240.0,0.12329]
[1754240496493,5.47442523,114250.0,114240.0,0.12529]
[1754240497132,5.54879523,114250.0,114240.0,0.12529]
[1754240498806,5.54879523,114250.0,114240.0,0.12852]
[1754240498807,0.368329,114250.0,114240.0,0.12852]
[1754240499027,0.36663163,114250.0,114240.0,0.12852]
[1754240499449,0.35021054,114250.0,114240.0,0.12852]
[1754240499664,0.01021054,114250.0,114240.0,0.95996489]
[1754240499856,0.01021054,114250.0,114240.0,0.2824432]
[1754240500082,0.002,114250.0,114240.0,0.2824432]
[1754240500323,0.002,114250.0,114240.0,0.26252]
[1754240500749,0.00418867,114250.0,114240.0,0.26252]
[1754240501208,0.00418867,114250.0,114240.0,0.25752]
[1754240507991,0.00418867,114250.0,114240.0,0.25252]
[1754240515073,0.00418867,114250.0,114240.0,0.24752]
[1754240516556,0.00418867,114250.0,114240.0,0.272272]
[1754240517011,0.00418867,114250.0,114240.0,0.24752]
[1754240522504,0.00418867,114250.0,114240.0,0.24252]
[1754240523298,0.00418867,114250.0,114240.0,0.23929]
[1754240523564,0.00942867,114250.0,114240.0,0.23929]
[1754240524672,0.08237867,114250.0,114240.0,0.23929]
[1754240525536,0.00942867,114250.0,114240.0,0.23929]
[1754240526938,0.00942867,114250.0,114240.0,0.25673902]
[1754240527132,0.08237867,114250.0,114240.0,0.02776]
[1754240527341,4.88329419,114250.0,114240.0,0.16196]
[1754240527560,0.02943519,114250.0,114240.0,0.16196]
[1754240528015,0.0376476,114250.0,114240.0,0.16196]
[1754240528649,0.05135134,114250.0,114240.0,0.16196]
[1754240528935,0.02396615,114250.0,114240.0,0.16196]
[1754240529358,0.07527615,114250.0,114240.0,0.16196]
[1754240529572,0.07527615,114250.0,114240.0,0.15696]
[1754240529779,0.07746482,114250.0,114240.0,0.15696]
[1754240531042,0.02615482,114250.0,114240.0,0.23228]
[1754240536800,0.02615482,114250.0,114240.0,0.22728]
[1754240538794,0.02615482,114250.0,114240.0,0.23246]
[1754240539742,0.02615482,114250.0,114240.0,0.09826]
[1754240539971,0.02615482,114250.0,114240.0,0.23242]
[1754240542483,4.853859,114250.0,114240.0,0.23242]
[1754240543802,4.853859,114250.0,114240.0,0.22742]
[1754240545084,4.855539,114250.0,114240.0,0.14692]
[1754240545300,4.99622184,114250.0,114240.0,0.01276]
[1754240545548,5.1467662,114250.0,114240.0,0.01276]
[1754240547078,5.4867662,114250.0,114240.0,0.01276]
[1754240548789,5.0947162,114250.0,114240.0,0.01276]
[1754240549655,5.1467662,114250.0,114240.0,0.01276]
[1754240550910,5.1467662,114250.0,114240.0,0.00776]
[1754240550911,5.14676579,114250.0,114240.0,0.00776]
[1754240551350,5.16047005,114250.0,114240.0,0.00776]
[1754240552217,5.50047005,114250.0,114240.0,0.00776]
[1754240552632,5.52679805,114250.0,114240.0,0.00776]
[1754240554405,5.53501088,114250.0,114240.0,0.00776]
[1754240554591,5.56344607,114250.0,114240.0,0.00776]
[1754240554958,5.38756107,114250.0,114240.0,0.00776]
[1754240555153,5.38651107,114250.0,114240.0,0.00776]
[1754240555567,5.37280681,114250.0,114240.0,0.00776]
[1754240557899,5.37280681,114250.0,114240.0,0.00276]
[1754240558752,5.38651167,114250.0,114240.0,0.00276]
[1754240561323,5.38651144,114250.0,114240.0,0.00276]
[1754240565140,4.677974,114240.0,114230.0,0.07615]
[1754240565337,4.92512339,114240.0,114230.0,0.07812]
[1754240566330,4.92512339,114240.0,114230.0,0.07912]
[1754240566979,4.92512052,114240.0,114230.0,0.08012]
[1754240568657,4.92726052,114240.0,114230.0,0.08012]
[1754240569862,4.92725701,114240.0,114230.0,0.08012]
[1754240570088,0.11326301,114240.0,114230.0,0.08012]
[1754240570301,0.2306428,114240.0,114230.0,0.08012]
[1754240572790,0.2306428,114240.0,114230.0,0.07512]
[1754240573670,0.34820996,114240.0,114230.0,0.082632]
[1754240573890,0.34820996,114240.0,114230.0,0.23392102]
[1754240574103,0.34,114240.0,114230.0,0.23392102]
[1754240575110,0.34,114240.0,114230.0,0.23694102]
[1754240576085,0.34,114240.0,114230.0,0.22942902]
[1754240576554,0.34821205,114240.0,114230.0,0.22942902]
[1754240576773,5.05571124,114240.0,114230.0,0.002]
[1754240576987,5.11572124,114240.0,114230.0,0.002]
[1754240577239,5.38028798,114240.0,114230.0,0.002]
[1754240578617,5.35469981,114240.0,114230.0,0.002]
[1754240579121,5.16076981,114240.0,114230.0,0.002]
[1754240579331,5.26734462,114240.0,114230.0,0.07182]
[1754240579540,5.26734462,114240.0,114230.0,0.07681]
[1754240579755,5.15971362,114240.0,114230.0,0.07681]
[1754240579960,5.27895014,114240.0,114230.0,0.07181]
[1754240583346,5.28109014,114240.0,114230.0,0.07181]
[1754240585713,5.26738462,114240.0,114230.0,0.07181]
[1754240585930,5.26738502,114240.0,114230.0,0.07181]
[1754240587197,5.26738502,114240.0,114230.0,0.06681]
[1754240590130,5.28109029,114240.0,114230.0,0.06681]
[1754240590814,5.28109029,114240.0,114230.0,0.06379]
[1754240594137,5.28109029,114240.0,114230.0,0.05879]
[1754240594579,5.28108986,114240.0,114230.0,0.05879]
[1754240596576,4.94108986,114240.0,114230.0,0.05879]
[1754240596987,4.94108986,114240.0,114230.0,0.06187]
[1754240599085,4.92738459,114240.0,114230.0,0.06187]
[1754240599409,4.92738459,114240.0,114230.0,0.05879]
[1754240601373,4.92738459,114240.0,114230.0,0.05379]
[1754240602123,5.2810898,114240.0,114230.0,0.05379]
[1754240603962,5.0662678,114240.0,114230.0,0.05379]
[1754240605486,5.0925958,114240.0,114230.0,0.05379]
[1754240605699,5.07889059,114240.0,114230.0,0.05379]
[1754240606120,4.463152,114230.0,114220.0,0.09462902]
[1754240606322,0.01017258,114230.0,114220.0,0.09658902]
[1754240607750,0.01017258,114230.0,114220.0,0.09858902]
[1754240608187,0.01017258,114230.0,114220.0,0.07806]
[1754240608423,0.01322258,114230.0,114220.0,0.07806]
[1754240609170,0.01323123,114230.0,114220.0,0.07806]
[1754240609366,0.01018123,114230.0,114220.0,0.07806]
[1754240609956,0.02388707,114230.0,114220.0,0.07906]
[1754240610767,0.02693707,114230.0,114220.0,0.003]
[1754240610988,4.5755874,114230.0,114220.0,0.003]
[1754240611629,4.7094674,114230.0,114220.0,0.003]
[1754240611825,5.04946689,114230.0,114220.0,0.003]
[1754240612410,5.04946689,114230.0,114220.0,0.0771]
[1754240613803,5.13809973,114230.0,114220.0,0.0771]
[1754240614020,5.13809973,114230.0,114220.0,0.003]
[1754240614229,5.12165208,114230.0,114220.0,0.003]
[1754240614452,5.13809489,114230.0,114220.0,0.003]
[1754240614930,5.13809494,114230.0,114220.0,0.003]
[1754240615387,4.463152,114220.0,114210.0,0.08959658]
[1754240615589,0.00822142,114220.0,114210.0,0.09155658]
[1754240616051,0.00822142,114220.0,114210.0,0.09463658]
[1754240616283,4.463152,114220.0,114210.0,0.09463658]
[1754240616597,4.463152,114220.0,114210.0,0.09763658]
[1754240616806,4.463152,114220.0,114210.0,0.10163658]
[1754240619820,0.03476119,114220.0,114210.0,0.10163658]
[1754240620192,4.463152,114220.0,114210.0,0.10163658]
[1754240620585,4.465112,114220.0,114210.0,0.10163658]
[1754240620981,0.00196,114220.0,114210.0,0.09855658]
[1754240622407,0.00196,114220.0,114210.0,0.09355658]
[1754240624790,0.00196,114220.0,114210.0,0.09675658]
[1754240625209,0.64831868,114230.0,114210.0,0.09675658]
[1754240625415,4.463152,114220.0,114210.0,0.05266868]
[1754240625870,4.463152,114220.0,114210.0,0.02960902]
[1754240626075,4.463152,114220.0,114210.0,0.09721902]
[1754240626280,4.463152,114220.0,114210.0,0.09821902]
[1754240626484,4.463152,114220.0,114210.0,0.09921902]
[1754240626711,4.463152,114220.0,114210.0,0.09821902]
[1754240626920,4.463152,114220.0,114210.0,0.10021902]
[1754240627124,4.463152,114220.0,114210.0,0.10221902]
[1754240630633,4.463152,114220.0,114210.0,0.09721902]
[1754240631704,0.00215,114220.0,114210.0,0.09401902]
[1754240631912,0.00528,114220.0,114210.0,0.09401902]
[1754240633668,0.00215,114220.0,114210.0,0.09401902]
[1754240635804,0.01037117,114220.0,114210.0,0.09401902]
[1754240637795,0.01037117,114220.0,114210.0,0.08157]
[1754240640914,0.00822117,114220.0,114210.0,0.08477]
[1754240642065,0.21317444,114230.0,114210.0,0.08477]
[1754240642302,4.463152,114220.0,114210.0,0.08477]
[1754240642705,4.463152,114220.0,114210.0,0.17734298]
[1754240642919,0.01370665,114230.0,114210.0,0.17534298]
[1754240643135,0.01370665,114230.0,114220.0,0.21157]
[1754240643350,0.01370665,114230.0,114220.0,0.21359]
[1754240644357,0.01370665,114230.0,114220.0,0.90859919]
[1754240644585,0.01370665,114230.0,114220.0,0.99743675]
[1754240644805,0.01370665,114230.0,114220.0,0.31487658]
[1754240645240,0.01370665,114230.0,114220.0,0.31587658]
[1754240645681,0.01370665,114230.0,114220.0,0.22703902]
[1754240646045,0.01370665,114230.0,114220.0,0.22803902]
[1754240651514,0.01370665,114230.0,114220.0,0.25492346]
[1754240651915,0.01370665,114230.0,114220.0,0.24992346]
[1754240656851,0.01370665,114230.0,114220.0,0.92748363]
[1754240657094,0.01370665,114230.0,114220.0,0.33876102]
[1754240657323,0.01370665,114230.0,114220.0,1.01632119]
[1754240657750,0.01370665,114230.0,114220.0,0.33876102]
[1754240658942,0.01370665,114230.0,114220.0,0.33376102]
[1754240659175,4.463152,114240.0,114230.0,0.01744902]
[1754240659346,4.463152,114240.0,114230.0,0.09350902]
[1754240661145,4.465272,114240.0,114230.0,0.09350902]
[1754240661375,0.00212,114240.0,114230.0,0.09350902]
[1754240661570,0.00212,114240.0,114230.0,0.11742437]
[1754240663316,0.00212,114240.0,114230.0,0.11432437]
[1754240665149,0.00212,114240.0,114230.0,0.09040902]
[1754240666240,0.00212,114240.0,114230.0,0.08540902]
[1754240668378,4.463152,114250.0,114230.0,0.08850902]
[1754240668650,4.463152,114240.0,114230.0,0.08850902]
[1754240672510,4.286807,114240.0,114230.0,0.08850902]
[1754240673260,0.0137042,114250.0,114230.0,0.10210775]
[1754240673504,0.02191814,114250.0,114230.0,0.02815775]
[1754240673705,0.02191814,114250.0,114240.0,0.07395]
[1754240673924,0.02191814,114250.0,114240.0,0.07606]
[1754240674552,0.02489814,114250.0,114240.0,0.07606]
[1754240674943,0.06231796,114250.0,114240.0,0.07606]
[1754240675193,0.02489814,114250.0,114240.0,0.07606]
[1754240675584,0.02689814,114250.0,114240.0,0.07606]
[1754240676368,0.02589814,114250.0,114240.0,0.08627078]
[1754240676646,0.02689814,114250.0,114240.0,0.08627078]
[1754240676841,0.02491814,114250.0,114240.0,0.08627078]
[1754240677194,0.02491916,114250.0,114240.0,0.08627078]
[1754240680136,0.02491916,114250.0,114240.0,0.07606]
[1754240680377,0.02703916,114250.0,114240.0,0.07106]
[1754240682418,0.01333496,114250.0,114240.0,0.07408]
[1754240682999,0.01121496,114250.0,114240.0,0.07408]
[1754240684376,0.01121496,114250.0,114240.0,0.20784]
[1754240684571,0.01121496,114250.0,114240.0,0.29667756]
[1754240684825,0.003,114250.0,114240.0,0.29667756]
[1754240685420,0.003,114250.0,114240.0,0.20784]
[1754240687274,4.286807,114260.0,114240.0,0.20784]
[1754240687483,0.09684659,114260.0,114250.0,0.00302]
[1754240687732,0.09881659,114260.0,114250.0,0.00302]
[1754240688325,0.01218375,114260.0,114250.0,0.00499]
[1754240688682,0.05102023,114260.0,114240.0,0.12175]
[1754240688894,0.0132964,114260.0,114240.0,0.20691809]
[1754240689080,0.0162964,114260.0,114240.0,0.20691809]
[1754240689456,0.0182964,114260.0,114240.0,0.20691809]
[1754240689649,0.03199949,114260.0,114250.0,0.07269]
[1754240690454,0.02699949,114260.0,114250.0,0.07269]
[1754240690670,0.02799949,114260.0,114250.0,0.07269]
[1754240690918,0.02899949,114260.0,114250.0,0.092134]
[1754240691474,0.02799949,114260.0,114250.0,0.092134]
[1754240691656,0.02899949,114260.0,114250.0,0.092134]
[1754240692826,0.02899949,114260.0,114250.0,0.094104]
[1754240693037,0.06417471,114260.0,114250.0,0.094104]
[1754240693805,0.02602949,114260.0,114250.0,0.094104]
[1754240694463,0.02602949,114260.0,114250.0,0.089104]
[1754240696623,0.168102,114280.0,114250.0,0.092124]
[1754240696871,4.286807,114260.0,114250.0,0.024434]
[1754240697509,4.286807,114260.0,114250.0,0.097124]
[1754240700610,0.002,114260.0,114250.0,0.07768]
[1754240701597,0.002,114260.0,114250.0,0.07268]
[1754240701822,0.00397,114260.0,114250.0,0.07465]
[1754240702336,0.002,114260.0,114250.0,0.07465]
[1754240703854,0.002,114260.0,114250.0,0.07767]
[1754240704117,0.002,114260.0,114250.0,0.08047]
[1754240704287,0.00397,114260.0,114250.0,0.1030443]
[1754240704907,0.00397,114260.0,114250.0,0.07745]
[1754240706578,0.00397,114260.0,114250.0,0.08047]
[1754240707858,0.002,114260.0,114250.0,0.08047]
[1754240708601,0.002,114260.0,114250.0,0.07765818]
[1754240709024,0.002,114260.0,114250.0,0.10397818]
[1754240709229,0.002,114260.0,114250.0,0.1336222]
[1754240713205,0.002,114260.0,114250.0,0.10397818]
[1754240715747,0.002,114260.0,114250.0,0.09897818]
[1754240716734,0.01021461,114260.0,114250.0,0.09897818]
[1754240717347,0.01021516,114260.0,114250.0,0.09897818]
[1754240719602,0.01021578,114260.0,114250.0,0.09897818]
[1754240721249,0.01021578,114260.0,114250.0,0.18665999]
[1754240721484,0.01021578,114260.0,114250.0,0.18447181]
[1754240722997,0.01021578,114260.0,114250.0,0.17947181]
[1754240723253,0.01021578,114260.0,114250.0,0.19692083]
[1754240723469,0.002,114260.0,114250.0,0.19692083]
[1754240726018,0.002,114260.0,114250.0,0.10923902]
[1754240726235,0.002,114260.0,114250.0,0.14739534]
[1754240728331,0.002,114260.0,114250.0,0.41059534]
[1754240728624,0.002,114260.0,114250.0,0.40840716]
[1754240730096,0.002,114260.0,114250.0,0.40340716]
[1754240730299,0.002,114260.0,114250.0,0.49224472]
[1754240731602,0.002,114260.0,114250.0,0.99523773]
[1754240732309,0.001,114260.0,114250.0,0.99523773]
[1754240732870,0.01667168,114280.0,114260.0,0.01744902]
[1754240733073,0.01667168,114280.0,114270.0,0.13364]
[1754240733239,0.01869168,114280.0,114270.0,0.20567]
[1754240733468,0.0219164,114280.0,114270.0,0.92704799]
[1754240733676,0.0104104,114290.0,114270.0,0.92704799]
[1754240733880,0.0186244,114290.0,114280.0,0.0773476]
[1754240734081,0.0186244,114290.0,114280.0,0.0794876]
[1754240734288,0.0186244,114290.0,114280.0,0.09474902]
[1754240734584,0.0186244,114290.0,114280.0,0.09693662]
[1754240734793,0.0144304,114290.0,114280.0,0.09693662]
[1754240734992,0.0144304,114290.0,114280.0,0.09380662]
[1754240735419,0.0174004,114290.0,114280.0,0.09180662]
[1754240735817,0.02561435,114290.0,114280.0,0.09180662]
[1754240736463,0.02661435,114290.0,114280.0,0.09180662]
[1754240737163,0.02661435,114290.0,114280.0,0.08680662]
[1754240738314,0.02661435,114290.0,114280.0,0.21825902]
[1754240738994,0.02661435,114290.0,114280.0,0.15108902]
[1754240739205,0.02661435,114290.0,114280.0,0.22311902]
[1754240740275,0.0184004,114290.0,114280.0,0.27438212]
[1754240740488,0.0184004,114290.0,114280.0,0.22311902]
[1754240740690,0.0184004,114290.0,114280.0,0.20567]
[1754240742461,0.0184004,114290.0,114280.0,0.23180204]
[1754240744039,0.0184004,114290.0,114280.0,0.22680204]
[1754240745130,0.0184004,114290.0,114280.0,0.22896204]
[1754240746614,0.0134104,114290.0,114280.0,0.27849124]
[1754240746825,0.0134104,114290.0,114280.0,0.28150124]
[1754240747637,0.0134104,114290.0,114280.0,0.23197204]
[1754240750295,0.0134104,114290.0,114280.0,0.24942106]
[1754240750700,0.0134104,114290.0,114280.0,0.51262106]
[1754240752390,0.0134104,114290.0,114280.0,0.50762106]
[1754240753032,0.0134104,114290.0,114280.0,0.5962539]
[1754240753255,0.0134104,114290.0,114280.0,0.65851049]
[1754240754405,0.0114104,114290.0,114280.0,0.65851049]
[1754240755507,0.0114104,114290.0,114280.0,0.67240849]
[1754240755707,0.0104104,114290.0,114280.0,0.67240849]
[1754240757324,0.0104104,114290.0,114280.0,0.6101519]
[1754240759948,0.0104104,114290.0,114280.0,0.6051519]
[1754240764744,4.286807,114340.0,114280.0,0.6051519]
[1754240764981,0.0001249,114310.0,114300.0,0.01744902]
[1754240765193,0.0022049,114310.0,114300.0,0.22533902]
[1754240765397,0.01040535,114310.0,114300.0,0.22533902]
[1754240766029,0.01240535,114310.0,114300.0,0.22533902]
[1754240766894,0.01240535,114310.0,114300.0,0.22033902]
[1754240767110,0.01240535,114310.0,114300.0,0.20789]
[1754240767802,0.01240535,114310.0,114300.0,0.26679398]
[1754240768216,0.01440535,114310.0,114300.0,0.26679398]
[1754240771013,0.01440535,114310.0,114300.0,0.20789]
[1754240771226,0.01440535,114310.0,114300.0,0.20993]
[1754240773901,0.01440535,114310.0,114300.0,0.20493]
[1754240775675,0.01440535,114310.0,114300.0,0.20803]
[1754240775886,0.01232535,114310.0,114300.0,0.20803]
[1754240776090,0.01232535,114310.0,114300.0,0.26664698]
[1754240777618,0.01232535,114310.0,114300.0,0.20803]
[1754240780480,0.0123348,114310.0,114300.0,0.20803]
[1754240781121,0.0123348,114310.0,114300.0,0.20303]
[1754240787180,0.0144748,114310.0,114300.0,0.20303]
[1754240788240,0.0144748,114310.0,114300.0,0.07947]
[1754240788476,0.0144748,114310.0,114300.0,0.21517722]
[1754240788674,0.0144748,114310.0,114300.0,0.24337101]
[1754240789478,4.286807,114340.0,114300.0,0.24337101]
[1754240789681,4.286807,114330.0,114300.0,0.21299]
[1754240789894,4.286807,114320.0,114300.0,0.21299]
[1754240790247,0.05217279,114320.0,114310.0,0.13352]
[1754240791710,0.05217348,114320.0,114310.0,0.13352]
[1754240792604,0.05517348,114320.0,114310.0,0.13352]
[1754240793025,0.05717348,114320.0,114310.0,0.13352]
[1754240793376,4.37230949,114320.0,114310.0,0.13352]
[1754240793784,4.286807,114310.0,114290.0,0.07464]
[1754240793995,4.30323764,114310.0,114300.0,0.13352]
[1754240795239,4.30523764,114310.0,114300.0,0.12852]
[1754240795854,4.30623764,114310.0,114300.0,0.12852]
[1754240796260,4.286807,114300.0,114290.0,0.07464]
[1754240796705,4.286807,114300.0,114290.0,0.20816]
[1754240797382,4.286807,114300.0,114290.0,0.2082849]
[1754240797999,4.286807,114310.0,114290.0,0.2082849]
[1754240798201,4.286807,114300.0,114290.0,0.2082849]
[1754240798395,4.286807,114310.0,114290.0,0.2082849]
[1754240798635,4.286807,114300.0,114290.0,0.2082849]
[1754240798850,4.286807,114310.0,114290.0,0.2082849]
[1754240799115,4.286807,114300.0,114290.0,0.2082849]
[1754240799251,4.286807,114310.0,114290.0,0.2082849]
[1754240799610,4.286807,114300.0,114290.0,0.2082849]
[1754240800075,4.286807,114310.0,114290.0,0.2103249]
[1754240800293,4.30322343,114310.0,114290.0,0.2103249]
[1754240800515,4.286807,114300.0,114290.0,0.2103249]
[1754240800760,4.286807,114300.0,114290.0,0.24104179]
[1754240801000,4.286807,114310.0,114300.0,0.07303]
[1754240801238,4.286807,114310.0,114300.0,0.07511]
[1754240801462,4.29501417,114310.0,114300.0,0.07511]
[1754240801929,4.29701417,114310.0,114300.0,0.07511]
[1754240802404,4.29701417,114310.0,114300.0,0.09405718]
[1754240802669,0.00920717,114310.0,114300.0,0.09405718]
[1754240802927,0.00920717,114310.0,114300.0,0.07011]
[1754240803160,0.01020717,114310.0,114300.0,0.07011]
[1754240803784,0.01120717,114310.0,114300.0,0.07011]
[1754240805957,0.01120717,114310.0,114300.0,0.07229722]
[1754240806157,0.01020717,114310.0,114300.0,0.09289143]
[1754240806399,0.01020717,114310.0,114300.0,0.07229722]
[1754240806929,0.00820717,114310.0,114300.0,0.07229722]
[1754240809133,0.00820681,114310.0,114300.0,0.07229722]
[1754240809332,0.00820681,114310.0,114300.0,0.06729722]
[1754240811999,0.00820691,114310.0,114300.0,0.06729722]
[1754240814854,0.04395004,114320.0,114300.0,0.06729722]
[1754240815073,0.06036444,114320.0,114310.0,0.13673]
[1754240815323,0.06036444,114320.0,114310.0,0.20655]
[1754240816968,0.06236444,114320.0,114310.0,0.20655]
[1754240817222,0.06036444,114320.0,114310.0,0.20155]
[1754240817640,0.06336444,114320.0,114310.0,0.20155]
[1754240818114,0.06236444,114320.0,114310.0,0.20155]
[1754240818694,0.03874284,114320.0,114310.0,0.20155]
[1754240823303,0.03874284,114320.0,114310.0,0.20363]
[1754240824232,0.03874284,114320.0,114310.0,0.19863]
[1754240829295,0.06337777,114320.0,114310.0,0.19863]
[1754240831215,0.06337777,114320.0,114310.0,0.19363]
[1754240832542,0.034827,114340.0,114310.0,0.19363]
[1754240832762,4.286807,114320.0,114310.0,0.1206]
[1754240833359,4.286807,114320.0,114310.0,0.19158]
[1754240834371,4.288807,114320.0,114310.0,0.19158]
[1754240834580,0.002,114320.0,114310.0,0.19158]
[1754240835516,0.03901192,114320.0,114310.0,0.19158]
[1754240838344,0.03901192,114320.0,114310.0,0.18658]
[1754240843700,0.05270818,114320.0,114310.0,0.18658]
[1754240844590,0.07735525,114320.0,114310.0,0.18658]
[1754240845349,0.07735525,114320.0,114310.0,0.18158]
[1754240845865,4.286807,114330.0,114310.0,0.18158]
[1754240846076,4.286807,114330.0,114320.0,0.07098]
[1754240847101,4.290807,114330.0,114320.0,0.07098]
[1754240847346,4.288807,114330.0,114320.0,0.07098]
[1754240847557,4.290807,114330.0,114320.0,0.07098]
[1754240848577,4.288807,114330.0,114320.0,0.07098]
[1754240848994,4.290807,114330.0,114320.0,0.07098]
[1754240850614,4.3262599,114330.0,114320.0,0.07098]
[1754240851831,4.3262599,114330.0,114320.0,0.04398]
[1754240852034,4.3283799,114330.0,114320.0,0.04398]
[1754240852469,4.3283799,114330.0,114320.0,0.03898]
[1754240854098,4.286807,114320.0,114310.0,0.11159]
[1754240854314,0.00212,114320.0,114310.0,0.11369]
[1754240854539,0.00212,114320.0,114310.0,0.1816]
[1754240854758,4.286807,114320.0,114310.0,0.209462]
[1754240854999,4.286807,114320.0,114310.0,0.1816]
[1754240855206,4.287807,114320.0,114310.0,0.1816]
[1754240855554,0.001,114320.0,114310.0,0.1816]
[1754240857871,0.001,114320.0,114310.0,0.20656]
[1754240858089,0.0092149,114320.0,114310.0,0.20652]
[1754240859577,0.0092149,114320.0,114310.0,0.20152]
[1754240859773,0.0113349,114320.0,114310.0,0.20152]
[1754240860352,4.31756239,114320.0,114300.0,0.026308]
[1754240860574,4.286807,114310.0,114300.0,0.20135]
[1754240860778,4.3000719,114310.0,114300.0,0.06791]
[1754240861036,4.3000719,114310.0,114300.0,0.13344]
[1754240861240,4.3000719,114310.0,114290.0,0.2044449]
[1754240861241,4.286807,114300.0,114290.0,0.2044449]
[1754240861413,4.2970419,114300.0,114290.0,0.0710049]
[1754240861575,0.0132649,114300.0,114290.0,0.2064249]
[1754240862998,0.0132649,114300.0,114290.0,0.2044449]
[1754240863701,0.0132649,114300.0,114290.0,0.2064249]
[1754240863925,0.0132649,114300.0,114290.0,0.2074249]
[1754240864555,0.0102349,114300.0,114290.0,0.2074249]
[1754240864782,0.01022784,114300.0,114290.0,0.2074249]
[1754240864998,0.01022784,114300.0,114290.0,0.2104249]
[1754240865455,0.01022784,114300.0,114290.0,0.23587809]
[1754240866109,0.01022784,114300.0,114290.0,0.10544809]
[1754240866355,0.01022784,114300.0,114290.0,0.23888809]
[1754240866584,0.01022784,114300.0,114290.0,0.2134349]
[1754240866792,0.01022784,114300.0,114290.0,0.2084349]
[1754240870551,0.01022123,114300.0,114290.0,0.2084349]
[1754240873265,0.00820123,114300.0,114290.0,0.2084349]
[1754240873885,0.00820123,114300.0,114290.0,0.2034349]
[1754240874833,0.01022123,114300.0,114290.0,0.2034349]
[1754240875814,0.19509253,114330.0,114290.0,0.2034349]
[1754240876022,4.286807,114310.0,114300.0,0.07088]
[1754240876260,4.30522543,114310.0,114300.0,0.07088]
[1754240879136,4.09385043,114310.0,114300.0,0.07288]
[1754240880986,4.09385043,114310.0,114300.0,0.06788]
[1754240887967,4.10205693,114310.0,114300.0,0.06788]
[1754240888232,4.10205693,114310.0,114300.0,0.06288]
[1754240889996,4.10206143,114310.0,114300.0,0.06288]
[1754240894089,4.10206143,114310.0,114300.0,0.26288]
[1754240895224,4.10206143,114310.0,114300.0,0.25788]
[1754240896658,4.10206143,114310.0,114300.0,0.33544]
[1754240896659,4.11863708,114310.0,114300.0,0.33544]
[1754240896911,4.17477609,114310.0,114300.0,0.202]
[1754240897386,3.92617866,114310.0,114300.0,0.202]
[1754240897822,3.87174965,114310.0,114300.0,0.27012]
[1754240898038,3.87174965,114310.0,114300.0,0.27306]
[1754240900155,3.88544808,114310.0,114300.0,0.27306]
[1754240901154,3.68480243,114310.0,114300.0,0.27306]
[1754240901598,3.68480243,114310.0,114300.0,0.27012]
[1754240902179,3.68480243,114310.0,114300.0,0.26512]
[1754240902375,3.68480243,114310.0,114300.0,0.26806]
[1754240903046,3.81824243,114310.0,114300.0,0.26806]
[1754240905998,4.15824243,114310.0,114300.0,0.26806]
[1754240906988,4.144544,114310.0,114300.0,0.26806]
[1754240909163,4.144544,114310.0,114300.0,0.29458092]
[1754240909388,4.144544,114310.0,114300.0,0.26521]
[1754240911572,4.15824212,114310.0,114300.0,0.26521]
[1754240912992,4.1664549,114310.0,114300.0,0.26521]
[1754240915731,4.1664553,114310.0,114300.0,0.26521]
[1754240916469,4.1664553,114310.0,114300.0,0.26021]
[1754240921846,4.15275718,114310.0,114300.0,0.26021]
[1754240922060,4.15271718,114310.0,114300.0,0.26021]
[1754240923442,4.15271718,114310.0,114300.0,0.25521]
[1754240923648,4.01931718,114310.0,114300.0,0.25521]
[1754240925496,0.00821318,114310.0,114300.0,0.25521]
[1754240925712,0.00821318,114310.0,114300.0,0.294075]
[1754240927050,0.00821318,114310.0,114300.0,0.25521]
[1754240928161,0.00821318,114310.0,114300.0,0.34384284]
[1754240929137,0.03332352,114330.0,114300.0,0.34384284]
[1754240929367,3.671104,114320.0,114310.0,0.20438]
[1754240929577,0.00820308,114320.0,114310.0,0.20652]
[1754240930845,0.00820308,114320.0,114310.0,0.20152]
[1754240931263,0.00920308,114320.0,114310.0,0.20152]
[1754240932320,0.00820308,114320.0,114310.0,0.20152]
[1754240933470,3.671104,114330.0,114310.0,0.20152]
[1754240933702,3.671104,114330.0,114320.0,0.07098]
[1754240933925,3.673134,114330.0,114320.0,0.04512]
[1754240934778,3.675134,114330.0,114320.0,0.04512]
[1754240934974,3.674134,114330.0,114320.0,0.04512]
[1754240935209,3.673134,114330.0,114320.0,0.04512]
[1754240935591,3.675134,114330.0,114320.0,0.04512]
[1754240936186,3.675134,114330.0,114320.0,0.0482]
[1754240937335,3.71049934,114330.0,114320.0,0.0482]